[Event "Meltwater Champions Chess Tour 2022: Chessable Masters | Prelims"]
[White "Tari, Aryan"]
[Black "Carlsen, Magnus"]
[WhiteFideId "1510045"]
[BlackFideId "1503014"]
[WhiteElo "2531"]
[BlackElo "2847"]
[Result "1/2-1/2"]
[Round "01"]
[TimeControl "900+10"]
[Date "2022.05.19"]
[WhiteClock "0:06:52"]
[BlackClock "0:11:03"]

1. e4 {[%clk 0:15:20]}  e6 {[%clk 0:15:20]} 2. d4 {[%clk 0:15:24]}  d5 {[%clk 0:15:27]} 3. Nc3 {[%clk 0:15:33]}  Bb4 {[%clk 0:15:10]} 4. e5 {[%clk 0:15:41]}  b6 {[%clk 0:15:07]} 5. a3 {[%clk 0:15:06]}  Bf8 {[%clk 0:15:11]} 6. Bb5+ {[%clk 0:15:12]}  c6 {[%clk 0:15:12]} 7. Ba4 {[%clk 0:15:19]}  Ba6 {[%clk 0:14:11]} 8. Nce2 {[%clk 0:15:26]}  h5 {[%clk 0:11:36]} 9. Nf3 {[%clk 0:15:10]}  Be7 {[%clk 0:11:45]} 10. h4 {[%clk 0:13:50]}  Nh6 {[%clk 0:11:52]} 11. c3 {[%clk 0:13:08]}  g6 {[%clk 0:10:10]} 12. Bg5 {[%clk 0:11:57]}  Bxe2 {[%clk 0:09:59]} 13. Qxe2 {[%clk 0:12:05]}  b5 {[%clk 0:09:02]} 14. Bc2 {[%clk 0:11:50]}  Nd7 {[%clk 0:09:11]} 15. a4 {[%clk 0:11:20]}  a6 {[%clk 0:09:15]} 16. O-O {[%clk 0:10:04]}  Nb6 {[%clk 0:09:07]} 17. a5 {[%clk 0:08:53]}  Nd7 {[%clk 0:08:58]} 18. b4 {[%clk 0:09:01]}  Bxg5 {[%clk 0:09:06]} 19. Nxg5 {[%clk 0:09:07]}  Nf8 {[%clk 0:09:14]} 20. Qd2 {[%clk 0:08:40]}  Qe7 {[%clk 0:09:12]} 21. g3 {[%clk 0:08:41]}  Nf5 {[%clk 0:09:19]} 22. Rae1 {[%clk 0:08:31]}  O-O-O {[%clk 0:09:16]} 23. Nh3 {[%clk 0:07:41]}  Nh7 {[%clk 0:09:06]} 24. Bxf5 {[%clk 0:05:32]}  gxf5 {[%clk 0:09:14]} 25. Nf4 {[%clk 0:05:30]}  Rdg8 {[%clk 0:09:21]} 26. Kh2 {[%clk 0:05:34]}  Nf8 {[%clk 0:09:29]} 27. f3 {[%clk 0:05:29]}  Ng6 {[%clk 0:09:33]} 28. Nxg6 {[%clk 0:05:18]}  fxg6 {[%clk 0:09:34]} 29. f4 {[%clk 0:05:25]}  Kb7 {[%clk 0:09:42]} 30. Kg2 {[%clk 0:05:30]}  Ka8 {[%clk 0:09:47]} 31. Kf2 {[%clk 0:05:36]}  Kb7 {[%clk 0:09:56]} 32. Ke2 {[%clk 0:05:45]}  Ka8 {[%clk 0:10:05]} 33. Kd1 {[%clk 0:05:55]}  Kb7 {[%clk 0:10:15]} 34. Kc2 {[%clk 0:06:04]}  Ka8 {[%clk 0:10:24]} 35. Kb2 {[%clk 0:06:14]}  Kb7 {[%clk 0:10:34]} 36. Kb3 {[%clk 0:06:23]}  Ka8 {[%clk 0:10:44]} 37. Kb2 {[%clk 0:06:33]}  Kb7 {[%clk 0:10:53]} 38. Kb3 {[%clk 0:06:43]}  Ka8 {[%clk 0:11:03]} 39. Kb2 {[%clk 0:06:52]} 1/2-1/2


[Site "http://www.chessbomb.com"]

[Event "Meltwater Champions Chess Tour 2022: Chessable Masters | Prelims"]
[White "Grandelius, Nils"]
[Black "Giri, Anish"]
[WhiteFideId "1710400"]
[BlackFideId "24116068"]
[WhiteElo "2652"]
[BlackElo "2730"]
[Result "1/2-1/2"]
[Round "01"]
[TimeControl "900+10"]
[Date "2022.05.19"]
[WhiteClock "0:05:56"]
[BlackClock "0:07:25"]

1. e4 {[%clk 0:15:20]}  c5 {[%clk 0:15:20]} 2. c3 {[%clk 0:15:27]}  Nf6 {[%clk 0:14:59]} 3. e5 {[%clk 0:15:35]}  Nd5 {[%clk 0:15:08]} 4. Bc4 {[%clk 0:15:45]}  e6 {[%clk 0:14:34]} 5. Nf3 {[%clk 0:15:50]}  d6 {[%clk 0:14:28]} 6. d4 {[%clk 0:15:58]}  cxd4 {[%clk 0:14:36]} 7. cxd4 {[%clk 0:16:08]}  Be7 {[%clk 0:14:46]} 8. O-O {[%clk 0:16:15]}  O-O {[%clk 0:14:55]} 9. Qe2 {[%clk 0:16:22]}  a6 {[%clk 0:15:03]} 10. Rd1 {[%clk 0:15:05]}  b5 {[%clk 0:14:28]} 11. Bxd5 {[%clk 0:15:11]}  exd5 {[%clk 0:14:36]} 12. Nc3 {[%clk 0:15:20]}  Be6 {[%clk 0:14:18]} 13. Bf4 {[%clk 0:14:30]}  Nc6 {[%clk 0:14:14]} 14. exd6 {[%clk 0:13:54]}  Bxd6 {[%clk 0:14:23]} 15. Bxd6 {[%clk 0:14:04]}  Qxd6 {[%clk 0:14:32]} 16. Ne5 {[%clk 0:14:14]}  Ne7 {[%clk 0:10:57]} 17. Qd2 {[%clk 0:13:36]}  Bf5 {[%clk 0:10:58]} 18. Rac1 {[%clk 0:13:22]}  Rac8 {[%clk 0:11:02]} 19. Ne2 {[%clk 0:12:10]}  f6 {[%clk 0:10:55]} 20. Nd3 {[%clk 0:12:17]}  Bxd3 {[%clk 0:11:02]} 21. Qxd3 {[%clk 0:12:27]}  Rc4 {[%clk 0:10:37]} 22. b3 {[%clk 0:12:06]}  Rxc1 {[%clk 0:10:46]} 23. Rxc1 {[%clk 0:12:16]}  Rc8 {[%clk 0:10:49]} 24. Rxc8+ {[%clk 0:09:43]}  Nxc8 {[%clk 0:10:59]} 25. g3 {[%clk 0:09:52]}  Ne7 {[%clk 0:10:45]} 26. Nf4 {[%clk 0:09:33]}  g5 {[%clk 0:09:42]} 27. Ng2 {[%clk 0:09:32]}  Qe6 {[%clk 0:09:41]} 28. f3 {[%clk 0:07:22]}  Qf5 {[%clk 0:08:48]} 29. Qxf5 {[%clk 0:06:32]}  Nxf5 {[%clk 0:08:56]} 30. Kf2 {[%clk 0:06:42]}  Kf7 {[%clk 0:08:50]} 31. Ne3 {[%clk 0:06:49]}  Ke6 {[%clk 0:06:58]} 32. Nxf5 {[%clk 0:05:49]}  Kxf5 {[%clk 0:07:08]} 33. b4 {[%clk 0:05:43]}  Kg6 {[%clk 0:06:32]} 34. g4 {[%clk 0:05:04]}  h6 {[%clk 0:06:28]} 35. h3 {[%clk 0:05:10]}  Kf7 {[%clk 0:06:37]} 36. Ke3 {[%clk 0:05:19]}  Ke6 {[%clk 0:06:46]} 37. Kd3 {[%clk 0:05:27]}  Kd6 {[%clk 0:06:56]} 38. Ke3 {[%clk 0:05:36]}  Ke6 {[%clk 0:07:05]} 39. Kd3 {[%clk 0:05:46]}  Kd6 {[%clk 0:07:15]} 40. Ke3 {[%clk 0:05:56]}  Ke6 {[%clk 0:07:25]} 1/2-1/2


[Site "http://www.chessbomb.com"]

[Event "Meltwater Champions Chess Tour 2022: Chessable Masters | Prelims"]
[White "Praggnanandhaa, R"]
[Black "Wei, Yi"]
[WhiteFideId "25059530"]
[BlackFideId "8603405"]
[WhiteElo "1927"]
[BlackElo "2752"]
[Result "1/2-1/2"]
[Round "01"]
[TimeControl "900+10"]
[Date "2022.05.19"]
[WhiteClock "0:00:55"]
[BlackClock "0:02:12"]

1. e4 {[%clk 0:15:20]}  c5 {[%clk 0:15:20]} 2. Nf3 {[%clk 0:15:25]}  d6 {[%clk 0:15:27]} 3. Bb5+ {[%clk 0:15:23]}  Nd7 {[%clk 0:15:17]} 4. a4 {[%clk 0:15:27]}  Nf6 {[%clk 0:15:21]} 5. Nc3 {[%clk 0:15:34]}  a6 {[%clk 0:15:08]} 6. Be2 {[%clk 0:15:35]}  b6 {[%clk 0:15:06]} 7. d4 {[%clk 0:15:38]}  cxd4 {[%clk 0:15:07]} 8. Qxd4 {[%clk 0:15:48]}  Bb7 {[%clk 0:15:12]} 9. O-O {[%clk 0:15:42]}  e5 {[%clk 0:15:21]} 10. Qe3 {[%clk 0:15:40]}  Be7 {[%clk 0:14:58]} 11. Nd2 {[%clk 0:14:54]}  O-O {[%clk 0:14:42]} 12. Rd1 {[%clk 0:13:55]}  Qc7 {[%clk 0:12:48]} 13. Nc4 {[%clk 0:12:14]}  Nc5 {[%clk 0:12:54]} 14. Bf3 {[%clk 0:08:45]}  Rad8 {[%clk 0:13:00]} 15. Qe2 {[%clk 0:06:51]}  Ncxe4 {[%clk 0:12:08]} 16. Nxe4 {[%clk 0:06:45]}  Nxe4 {[%clk 0:12:04]} 17. Bxe4 {[%clk 0:06:51]}  Bxe4 {[%clk 0:12:10]} 18. Qxe4 {[%clk 0:06:43]}  d5 {[%clk 0:12:19]} 19. Qxe5 {[%clk 0:05:40]}  dxc4 {[%clk 0:12:24]} 20. Bf4 {[%clk 0:05:49]}  Rxd1+ {[%clk 0:09:34]} 21. Rxd1 {[%clk 0:05:56]}  Rd8 {[%clk 0:09:42]} 22. Rxd8+ {[%clk 0:04:47]}  Qxd8 {[%clk 0:09:49]} 23. g3 {[%clk 0:04:49]}  Bf6 {[%clk 0:04:37]} 24. Qe4 {[%clk 0:04:56]}  Qc8 {[%clk 0:04:39]} 25. c3 {[%clk 0:04:13]}  b5 {[%clk 0:04:38]} 26. axb5 {[%clk 0:03:46]}  axb5 {[%clk 0:04:48]} 27. Qd5 {[%clk 0:03:36]}  Qe8 {[%clk 0:04:56]} 28. Kg2 {[%clk 0:02:55]}  g6 {[%clk 0:03:58]} 29. Bh6 {[%clk 0:02:41]}  Bg7 {[%clk 0:03:51]} 30. Be3 {[%clk 0:02:49]}  h5 {[%clk 0:03:47]} 31. h3 {[%clk 0:02:43]}  Qe5 {[%clk 0:03:05]} 32. Qd8+ {[%clk 0:01:37]}  Kh7 {[%clk 0:03:13]} 33. Qd7 {[%clk 0:01:42]}  Qe4+ {[%clk 0:02:15]} 34. Kh2 {[%clk 0:01:49]}  Qf5 {[%clk 0:02:23]} 35. Qb7 {[%clk 0:01:43]}  Kg8 {[%clk 0:02:09]} 36. Kg2 {[%clk 0:01:40]}  Bf6 {[%clk 0:02:04]} 37. Qc6 {[%clk 0:01:09]}  Kh7 {[%clk 0:01:52]} 38. Qb7 {[%clk 0:01:08]}  Kg7 {[%clk 0:01:53]} 39. h4 {[%clk 0:01:02]}  Kg8 {[%clk 0:01:52]} 40. Qa8+ {[%clk 0:01:09]}  Kg7 {[%clk 0:01:54]} 41. Qb7 {[%clk 0:01:17]}  Kg8 {[%clk 0:02:03]} 42. Qa8+ {[%clk 0:00:50]}  Kg7 {[%clk 0:02:12]} 43. Qb7 {[%clk 0:00:55]} 1/2-1/2


[Site "http://www.chessbomb.com"]

[Event "Meltwater Champions Chess Tour 2022: Chessable Masters | Prelims"]
[White "Harikrishna, Pentala"]
[Black "Vidit, Santosh Gujrathi"]
[WhiteFideId "5007003"]
[BlackFideId "5029465"]
[WhiteElo "2624"]
[BlackElo "2617"]
[Result "1/2-1/2"]
[Round "01"]
[TimeControl "900+10"]
[Date "2022.05.19"]
[WhiteClock "0:04:15"]
[BlackClock "0:01:20"]

1. d4 {[%clk 0:15:20]}  Nf6 {[%clk 0:15:20]} 2. c4 {[%clk 0:15:28]}  e6 {[%clk 0:15:28]} 3. Nf3 {[%clk 0:15:37]}  d5 {[%clk 0:15:37]} 4. Nc3 {[%clk 0:15:45]}  c5 {[%clk 0:15:34]} 5. cxd5 {[%clk 0:15:49]}  cxd4 {[%clk 0:15:43]} 6. Qxd4 {[%clk 0:15:57]}  exd5 {[%clk 0:15:52]} 7. e4 {[%clk 0:16:03]}  dxe4 {[%clk 0:16:00]} 8. Qxd8+ {[%clk 0:16:11]}  Kxd8 {[%clk 0:16:10]} 9. Ng5 {[%clk 0:16:20]}  Be6 {[%clk 0:16:19]} 10. Bb5 {[%clk 0:16:28]}  a6 {[%clk 0:15:48]} 11. Ba4 {[%clk 0:16:35]}  Nbd7 {[%clk 0:15:53]} 12. O-O {[%clk 0:16:11]}  Nc5 {[%clk 0:15:30]} 13. Rd1+ {[%clk 0:15:35]}  Ke7 {[%clk 0:15:36]} 14. Bc2 {[%clk 0:15:09]}  Rc8 {[%clk 0:15:31]} 15. Be3 {[%clk 0:14:49]}  h6 {[%clk 0:15:12]} 16. Bxc5+ {[%clk 0:14:09]}  Rxc5 {[%clk 0:15:22]} 17. Ngxe4 {[%clk 0:14:17]}  Rc6 {[%clk 0:14:39]} 18. Bb3 {[%clk 0:12:29]}  Nxe4 {[%clk 0:09:20]} 19. Nxe4 {[%clk 0:12:14]}  g6 {[%clk 0:06:04]} 20. Bd5 {[%clk 0:06:36]}  Rc2 {[%clk 0:03:56]} 21. Bxb7 {[%clk 0:06:40]}  Bg7 {[%clk 0:03:57]} 22. Bd5 {[%clk 0:06:18]}  Bxb2 {[%clk 0:03:40]} 23. Bxe6 {[%clk 0:05:47]}  Kxe6 {[%clk 0:02:36]} 24. Rab1 {[%clk 0:05:46]}  Rhc8 {[%clk 0:01:43]} 25. Re1 {[%clk 0:04:49]}  f5 {[%clk 0:01:41]} 26. Nd2+ {[%clk 0:03:51]}  Kf6 {[%clk 0:01:43]} 27. Nf3 {[%clk 0:03:57]}  Rd8 {[%clk 0:01:21]} 28. Kf1 {[%clk 0:03:39]}  Rd6 {[%clk 0:00:48]} 29. Re2 {[%clk 0:03:26]}  Rxe2 {[%clk 0:00:57]} 30. Kxe2 {[%clk 0:03:35]}  Re6+ {[%clk 0:01:04]} 31. Kf1 {[%clk 0:03:20]}  Ba3 {[%clk 0:01:10]} 32. h3 {[%clk 0:03:09]}  Bc5 {[%clk 0:01:05]} 33. Rc1 {[%clk 0:03:07]}  Bb6 {[%clk 0:01:11]} 34. Nd2 {[%clk 0:03:09]}  g5 {[%clk 0:00:57]} 35. Rc8 {[%clk 0:03:16]}  Ba5 {[%clk 0:00:56]} 36. Rc2 {[%clk 0:03:24]}  h5 {[%clk 0:00:45]} 37. g3 {[%clk 0:03:24]}  Bxd2 {[%clk 0:00:48]} 38. Rxd2 {[%clk 0:03:32]}  g4 {[%clk 0:00:39]} 39. hxg4 {[%clk 0:03:37]}  hxg4 {[%clk 0:00:49]} 40. Rd5 {[%clk 0:03:42]}  Re5 {[%clk 0:00:54]} 41. Rd6+ {[%clk 0:03:50]}  Re6 {[%clk 0:01:03]} 42. Rd5 {[%clk 0:04:00]}  Re5 {[%clk 0:01:11]} 43. Rd6+ {[%clk 0:04:09]}  Re6 {[%clk 0:01:20]} 44. Rd5 {[%clk 0:04:15]} 1/2-1/2


[Site "http://www.chessbomb.com"]

[Event "Meltwater Champions Chess Tour 2022: Chessable Masters | Prelims"]
[White "Jones, Gawain C B"]
[Black "Shankland, Sam"]
[WhiteFideId "409561"]
[BlackFideId "2004887"]
[WhiteElo "2630"]
[BlackElo "2616"]
[Result "0-1"]
[Round "01"]
[TimeControl "900+10"]
[Date "2022.05.19"]
[WhiteClock "0:00:11"]
[BlackClock "0:03:15"]

1. e4 {[%clk 0:15:20]}  c5 {[%clk 0:15:20]} 2. c3 {[%clk 0:15:27]}  Nf6 {[%clk 0:15:27]} 3. e5 {[%clk 0:15:35]}  Nd5 {[%clk 0:15:36]} 4. Nf3 {[%clk 0:15:44]}  d6 {[%clk 0:15:38]} 5. d4 {[%clk 0:15:28]}  cxd4 {[%clk 0:15:38]} 6. cxd4 {[%clk 0:15:26]}  Nc6 {[%clk 0:15:41]} 7. Bc4 {[%clk 0:14:49]}  dxe5 {[%clk 0:15:44]} 8. dxe5 {[%clk 0:14:58]}  Be6 {[%clk 0:15:53]} 9. O-O {[%clk 0:14:36]}  g6 {[%clk 0:16:00]} 10. Ng5 {[%clk 0:14:40]}  Bg7 {[%clk 0:16:07]} 11. Nxe6 {[%clk 0:14:48]}  fxe6 {[%clk 0:16:16]} 12. f4 {[%clk 0:14:52]}  Qa5 {[%clk 0:16:18]} 13. Bxd5 {[%clk 0:14:29]}  exd5 {[%clk 0:16:10]} 14. Nc3 {[%clk 0:13:53]}  e6 {[%clk 0:14:59]} 15. Qg4 {[%clk 0:11:59]}  Nd4 {[%clk 0:14:09]} 16. Be3 {[%clk 0:12:06]}  Nf5 {[%clk 0:14:16]} 17. Bf2 {[%clk 0:12:15]}  O-O {[%clk 0:14:13]} 18. Qe2 {[%clk 0:11:23]}  Rac8 {[%clk 0:13:31]} 19. g4 {[%clk 0:10:02]}  Ne7 {[%clk 0:13:37]} 20. Bh4 {[%clk 0:10:09]}  Nc6 {[%clk 0:11:13]} 21. Nb5 {[%clk 0:10:13]}  Qb4 {[%clk 0:10:51]} 22. Bg3 {[%clk 0:07:04]}  Nd4 {[%clk 0:10:12]} 23. Nxd4 {[%clk 0:07:12]}  Qxd4+ {[%clk 0:10:21]} 24. Rf2 {[%clk 0:06:46]}  Rc4 {[%clk 0:10:10]} 25. Rf1 {[%clk 0:06:22]}  Rfc8 {[%clk 0:08:32]} 26. Kh1 {[%clk 0:05:00]}  Qe4+ {[%clk 0:06:52]} 27. Qxe4 {[%clk 0:05:07]}  Rxe4 {[%clk 0:07:02]} 28. Kg2 {[%clk 0:03:55]}  Kf7 {[%clk 0:07:03]} 29. Rd1 {[%clk 0:03:42]}  h5 {[%clk 0:06:31]} 30. h3 {[%clk 0:03:39]}  hxg4 {[%clk 0:06:24]} 31. hxg4 {[%clk 0:03:49]}  g5 {[%clk 0:06:33]} 32. f5 {[%clk 0:02:49]}  Bxe5 {[%clk 0:06:13]} 33. Bxe5 {[%clk 0:02:47]}  Rxe5 {[%clk 0:06:22]} 34. fxe6+ {[%clk 0:02:39]}  Kxe6 {[%clk 0:06:27]} 35. Rdf1 {[%clk 0:02:35]}  d4 {[%clk 0:05:38]} 36. Rf6+ {[%clk 0:02:30]}  Kd5 {[%clk 0:05:47]} 37. R1f2 {[%clk 0:02:39]}  d3 {[%clk 0:05:18]} 38. Rf7 {[%clk 0:02:17]}  Ke4 {[%clk 0:02:53]} 39. Rf1 {[%clk 0:01:05]}  Rc2+ {[%clk 0:02:57]} 40. Kg3 {[%clk 0:00:58]}  Rxb2 {[%clk 0:03:02]} 41. Re1+ {[%clk 0:00:13]}  Kd4 {[%clk 0:02:50]} 42. Rd7+ {[%clk 0:00:22]}  Rd5 {[%clk 0:03:00]} 43. Rde7 {[%clk 0:00:16]}  d2 {[%clk 0:03:02]} 44. Rd1 {[%clk 0:00:22]}  Kd3 {[%clk 0:03:06]} 45. Kf3 {[%clk 0:00:24]}  Rb4 {[%clk 0:03:01]} 46. Rh1 {[%clk 0:00:11]}  Rf4+ {[%clk 0:03:02]} 47. Kg3 {[%clk 0:00:20]}  Re4 {[%clk 0:03:07]} 48. Rxb7 {[%clk 0:00:11]}  Re1 {[%clk 0:03:15]} 0-1


[Site "http://www.chessbomb.com"]

[Event "Meltwater Champions Chess Tour 2022: Chessable Masters | Prelims"]
[White "Anton Guijarro, David"]
[Black "Mishra, Abhimanyu"]
[WhiteFideId "2285525"]
[BlackFideId "30920019"]
[WhiteElo "2633"]
[BlackElo "2524"]
[Result "1-0"]
[Round "01"]
[TimeControl "900+10"]
[Date "2022.05.19"]
[WhiteClock "0:01:11"]
[BlackClock "0:00:59"]

1. d4 {[%clk 0:15:20]}  d5 {[%clk 0:15:20]} 2. c4 {[%clk 0:15:25]}  c6 {[%clk 0:15:28]} 3. Nf3 {[%clk 0:15:32]}  Nf6 {[%clk 0:15:36]} 4. e3 {[%clk 0:15:39]}  e6 {[%clk 0:15:43]} 5. Nbd2 {[%clk 0:15:43]}  Be7 {[%clk 0:15:41]} 6. b3 {[%clk 0:15:31]}  O-O {[%clk 0:15:39]} 7. Bd3 {[%clk 0:15:26]}  Nbd7 {[%clk 0:15:02]} 8. O-O {[%clk 0:15:23]}  dxc4 {[%clk 0:14:18]} 9. bxc4 {[%clk 0:15:03]}  c5 {[%clk 0:14:22]} 10. Bb2 {[%clk 0:14:41]}  cxd4 {[%clk 0:14:05]} 11. exd4 {[%clk 0:14:48]}  b6 {[%clk 0:14:11]} 12. Qe2 {[%clk 0:12:35]}  Bb7 {[%clk 0:13:32]} 13. Rfe1 {[%clk 0:12:43]}  Re8 {[%clk 0:13:12]} 14. Rad1 {[%clk 0:11:45]}  Qc7 {[%clk 0:12:26]} 15. Ng5 {[%clk 0:11:04]}  Bf8 {[%clk 0:10:37]} 16. Rc1 {[%clk 0:09:41]}  g6 {[%clk 0:08:52]} 17. Ndf3 {[%clk 0:09:02]}  h6 {[%clk 0:07:43]} 18. Ne4 {[%clk 0:08:01]}  Nxe4 {[%clk 0:07:34]} 19. Bxe4 {[%clk 0:08:10]}  Bxe4 {[%clk 0:07:37]} 20. Qxe4 {[%clk 0:08:18]}  Bg7 {[%clk 0:07:40]} 21. h3 {[%clk 0:07:43]}  Rac8 {[%clk 0:07:10]} 22. a4 {[%clk 0:06:32]}  Nc5 {[%clk 0:05:07]} 23. Qc2 {[%clk 0:06:14]}  Nb7 {[%clk 0:05:11]} 24. d5 {[%clk 0:03:45]}  Bxb2 {[%clk 0:03:11]} 25. Qxb2 {[%clk 0:03:52]}  exd5 {[%clk 0:03:03]} 26. cxd5 {[%clk 0:03:28]}  Qf4 {[%clk 0:02:24]} 27. Rxc8 {[%clk 0:03:13]}  Rxc8 {[%clk 0:02:31]} 28. Ne5 {[%clk 0:03:17]}  Re8 {[%clk 0:02:06]} 29. Re3 {[%clk 0:03:03]}  Nd6 {[%clk 0:01:44]} 30. Ng4 {[%clk 0:02:15]}  Rxe3 {[%clk 0:01:22]} 31. fxe3 {[%clk 0:02:25]}  Qg3 {[%clk 0:00:58]} 32. Nxh6+ {[%clk 0:01:21]}  Kh7 {[%clk 0:00:42]} 33. Ng4 {[%clk 0:01:22]}  Nf5 {[%clk 0:00:19]} 34. Qf2 {[%clk 0:01:00]}  Qxf2+ {[%clk 0:00:16]} 35. Kxf2 {[%clk 0:01:10]}  Nd6 {[%clk 0:00:22]} 36. Kf3 {[%clk 0:01:07]}  f5 {[%clk 0:00:25]} 37. Ne5 {[%clk 0:00:43]}  Kg7 {[%clk 0:00:24]} 38. Nc6 {[%clk 0:00:44]}  a6 {[%clk 0:00:23]} 39. g4 {[%clk 0:00:45]}  Kf6 {[%clk 0:00:19]} 40. h4 {[%clk 0:00:34]}  a5 {[%clk 0:00:13]} 41. Kf4 {[%clk 0:00:25]}  fxg4 {[%clk 0:00:12]} 42. Kxg4 {[%clk 0:00:23]}  b5 {[%clk 0:00:20]} 43. axb5 {[%clk 0:00:30]}  a4 {[%clk 0:00:27]} 44. b6 {[%clk 0:00:32]}  a3 {[%clk 0:00:33]} 45. Nb4 {[%clk 0:00:40]}  Ke5 {[%clk 0:00:28]} 46. Kg5 {[%clk 0:00:44]}  Nb7 {[%clk 0:00:16]} 47. Kxg6 {[%clk 0:00:46]}  Kd6 {[%clk 0:00:25]} 48. h5 {[%clk 0:00:47]}  Kc5 {[%clk 0:00:35]} 49. Na2 {[%clk 0:00:54]}  Kc4 {[%clk 0:00:40]} 50. h6 {[%clk 0:00:58]}  Kb3 {[%clk 0:00:49]} 51. h7 {[%clk 0:01:03]}  Kxa2 {[%clk 0:00:58]} 52. h8=Q {[%clk 0:01:12]}  Kb1 {[%clk 0:00:59]} 53. Qh1+ {[%clk 0:01:11]} 1-0


[Site "http://www.chessbomb.com"]

[Event "Meltwater Champions Chess Tour 2022: Chessable Masters | Prelims"]
[White "Ding, Liren"]
[Black "Van Foreest, Jorden"]
[WhiteFideId "8603677"]
[BlackFideId "1039784"]
[WhiteElo "2836"]
[BlackElo "2645"]
[Result "1-0"]
[Round "01"]
[TimeControl "900+10"]
[Date "2022.05.19"]
[WhiteClock "0:01:06"]
[BlackClock "0:00:11"]

1. Nf3 {[%clk 0:15:20]}  d5 {[%clk 0:15:20]} 2. e3 {[%clk 0:15:28]}  Nf6 {[%clk 0:15:06]} 3. c4 {[%clk 0:15:33]}  e6 {[%clk 0:15:14]} 4. Nc3 {[%clk 0:15:42]}  c5 {[%clk 0:15:21]} 5. d4 {[%clk 0:15:10]}  Nc6 {[%clk 0:15:27]} 6. cxd5 {[%clk 0:14:49]}  exd5 {[%clk 0:15:33]} 7. Bb5 {[%clk 0:14:58]}  a6 {[%clk 0:14:22]} 8. Bxc6+ {[%clk 0:14:59]}  bxc6 {[%clk 0:14:32]} 9. O-O {[%clk 0:14:46]}  Bd6 {[%clk 0:14:15]} 10. dxc5 {[%clk 0:14:45]}  Bxc5 {[%clk 0:14:23]} 11. b3 {[%clk 0:14:55]}  O-O {[%clk 0:14:20]} 12. Bb2 {[%clk 0:15:00]}  Bd6 {[%clk 0:13:25]} 13. Rc1 {[%clk 0:14:49]}  Bg4 {[%clk 0:12:45]} 14. Ne2 {[%clk 0:14:51]}  c5 {[%clk 0:12:22]} 15. Ng3 {[%clk 0:12:03]}  Rc8 {[%clk 0:10:25]} 16. Bxf6 {[%clk 0:08:40]}  gxf6 {[%clk 0:10:32]} 17. h3 {[%clk 0:08:05]}  Be6 {[%clk 0:10:28]} 18. Nh4 {[%clk 0:07:00]}  Kh8 {[%clk 0:10:25]} 19. Nhf5 {[%clk 0:06:02]}  Bb8 {[%clk 0:10:13]} 20. Nh6 {[%clk 0:05:59]}  f5 {[%clk 0:06:35]} 21. Ngxf5 {[%clk 0:05:40]}  Qf6 {[%clk 0:06:39]} 22. Qh5 {[%clk 0:04:51]}  Rfe8 {[%clk 0:05:46]} 23. f4 {[%clk 0:04:21]}  Qg6 {[%clk 0:05:28]} 24. g4 {[%clk 0:04:24]}  Qxh5 {[%clk 0:05:20]} 25. gxh5 {[%clk 0:04:34]}  d4 {[%clk 0:05:29]} 26. Kh2 {[%clk 0:03:24]}  dxe3 {[%clk 0:03:39]} 27. Nxe3 {[%clk 0:03:25]}  Rcd8 {[%clk 0:03:39]} 28. Kg3 {[%clk 0:01:15]}  Rd2 {[%clk 0:01:47]} 29. Rxc5 {[%clk 0:01:13]}  Rxa2 {[%clk 0:01:55]} 30. Nc4 {[%clk 0:01:05]}  Rd8 {[%clk 0:01:39]} 31. Rf3 {[%clk 0:01:04]}  Rd1 {[%clk 0:01:09]} 32. Kh4 {[%clk 0:01:03]}  Ba7 {[%clk 0:01:12]} 33. Rg3 {[%clk 0:00:54]}  Rd8 {[%clk 0:00:20]} 34. Ne5 {[%clk 0:00:58]}  Bxc5 {[%clk 0:00:11]} 35. Nexf7+ {[%clk 0:01:06]} 1-0


[Site "http://www.chessbomb.com"]

[Event "Meltwater Champions Chess Tour 2022: Chessable Masters | Prelims"]
[White "Hansen, Eric"]
[Black "Mamedyarov, Shakhriyar"]
[WhiteFideId "2606771"]
[BlackFideId "13401319"]
[WhiteElo "2579"]
[BlackElo "2699"]
[Result "1/2-1/2"]
[Round "01"]
[TimeControl "900+10"]
[Date "2022.05.19"]
[WhiteClock "0:00:50"]
[BlackClock "0:01:08"]

1. e4 {[%clk 0:15:20]}  e5 {[%clk 0:15:20]} 2. Nf3 {[%clk 0:15:28]}  Nc6 {[%clk 0:15:29]} 3. Bb5 {[%clk 0:15:26]}  a6 {[%clk 0:15:38]} 4. Ba4 {[%clk 0:15:34]}  Nf6 {[%clk 0:15:44]} 5. d3 {[%clk 0:15:18]}  b5 {[%clk 0:15:49]} 6. Bb3 {[%clk 0:15:25]}  Bc5 {[%clk 0:15:58]} 7. a4 {[%clk 0:14:53]}  Rb8 {[%clk 0:16:04]} 8. axb5 {[%clk 0:15:01]}  axb5 {[%clk 0:16:14]} 9. Nc3 {[%clk 0:15:00]}  d6 {[%clk 0:15:38]} 10. Nd5 {[%clk 0:14:29]}  Nxd5 {[%clk 0:14:39]} 11. Bxd5 {[%clk 0:14:36]}  Ne7 {[%clk 0:14:46]} 12. Bb3 {[%clk 0:14:44]}  O-O {[%clk 0:14:45]} 13. c3 {[%clk 0:13:42]}  Bb6 {[%clk 0:14:44]} 14. O-O {[%clk 0:13:29]}  h6 {[%clk 0:14:26]} 15. h3 {[%clk 0:13:18]}  Ng6 {[%clk 0:13:53]} 16. d4 {[%clk 0:12:56]}  Qf6 {[%clk 0:13:59]} 17. Be3 {[%clk 0:13:02]}  Nf4 {[%clk 0:13:04]} 18. Kh2 {[%clk 0:13:10]}  c5 {[%clk 0:12:52]} 19. Bc2 {[%clk 0:12:37]}  Re8 {[%clk 0:12:23]} 20. d5 {[%clk 0:09:12]}  c4 {[%clk 0:11:38]} 21. Ng1 {[%clk 0:09:07]}  Qg6 {[%clk 0:10:10]} 22. Qf3 {[%clk 0:08:08]}  Nxd5 {[%clk 0:09:57]} 23. Bxb6 {[%clk 0:07:46]}  Rxb6 {[%clk 0:09:09]} 24. Rfd1 {[%clk 0:07:52]}  Nf6 {[%clk 0:08:18]} 25. Qe3 {[%clk 0:07:15]}  Rb8 {[%clk 0:08:21]} 26. Rd2 {[%clk 0:06:14]}  Rd8 {[%clk 0:06:45]} 27. Rad1 {[%clk 0:06:12]}  Ne8 {[%clk 0:06:03]} 28. f4 {[%clk 0:05:40]}  Qf6 {[%clk 0:05:48]} 29. fxe5 {[%clk 0:05:30]}  Qxe5+ {[%clk 0:05:58]} 30. Kh1 {[%clk 0:05:39]}  Bb7 {[%clk 0:05:26]} 31. Nf3 {[%clk 0:05:42]}  Qg3 {[%clk 0:05:34]} 32. Qa7 {[%clk 0:05:21]}  Bc6 {[%clk 0:04:21]} 33. Nd4 {[%clk 0:04:32]}  Bd7 {[%clk 0:04:30]} 34. Ne2 {[%clk 0:03:19]}  Qh4 {[%clk 0:04:36]} 35. Qe3 {[%clk 0:03:22]}  Qe7 {[%clk 0:04:22]} 36. Qf4 {[%clk 0:03:20]}  b4 {[%clk 0:03:50]} 37. cxb4 {[%clk 0:02:55]}  Rxb4 {[%clk 0:04:00]} 38. Nc3 {[%clk 0:03:02]}  Rxb2 {[%clk 0:03:13]} 39. e5 {[%clk 0:00:52]}  dxe5 {[%clk 0:03:23]} 40. Qe3 {[%clk 0:00:50]}  Kh8 {[%clk 0:02:36]} 41. Nd5 {[%clk 0:01:00]}  Qg5 {[%clk 0:02:27]} 42. Qa3 {[%clk 0:01:06]}  Rxc2 {[%clk 0:02:18]} 43. Rxc2 {[%clk 0:00:54]}  Bc6 {[%clk 0:00:36]} 44. Rcd2 {[%clk 0:01:01]}  Kh7 {[%clk 0:00:19]} 45. Qc3 {[%clk 0:00:51]}  Nd6 {[%clk 0:00:16]} 46. Qc2+ {[%clk 0:00:50]}  g6 {[%clk 0:00:25]} 47. Nc3 {[%clk 0:00:42]}  Nb7 {[%clk 0:00:23]} 48. Rxd8 {[%clk 0:00:38]}  Nxd8 {[%clk 0:00:33]} 49. Nd5 {[%clk 0:00:21]}  Qh4 {[%clk 0:00:20]} 50. Qc3 {[%clk 0:00:25]}  Bxd5 {[%clk 0:00:17]} 51. Rxd5 {[%clk 0:00:34]}  Nc6 {[%clk 0:00:24]} 52. Qf3 {[%clk 0:00:28]}  Kg7 {[%clk 0:00:24]} 53. Rd7 {[%clk 0:00:33]}  Ne7 {[%clk 0:00:17]} 54. Qb7 {[%clk 0:00:27]}  Nf5 {[%clk 0:00:14]} 55. Rxf7+ {[%clk 0:00:29]}  Kg8 {[%clk 0:00:23]} 56. Rd7 {[%clk 0:00:15]}  Qe1+ {[%clk 0:00:30]} 57. Kh2 {[%clk 0:00:24]}  Qg3+ {[%clk 0:00:40]} 58. Kh1 {[%clk 0:00:31]}  Qe1+ {[%clk 0:00:49]} 59. Kh2 {[%clk 0:00:41]}  Qg3+ {[%clk 0:00:59]} 60. Kh1 {[%clk 0:00:50]}  Qe1+ {[%clk 0:01:08]} 1/2-1/2


[Site "http://www.chessbomb.com"]